Cogmind - Beta 10.2 @@@ ROGUE MODE // 2021.08.02 @ 12:39:48 Player: youngster Result: Self-destructed Performance ------------- Evolutions (3) 1500 Regions Visited (8) 1600 Robots Destroyed (71) 355 Value Destroyed (2444) 2444 Prototype IDs (5) 100 Alien Tech Used (1) 200 Bonus (376) 376 TOTAL SCORE: 6575 Bonus ------- High Alert Combat Kills 202 Follower Combat Kills 174 Cogmind --------- Core Integrity 378/700 Matter 207/300 Energy 240/240 System Corruption 4% Temperature Cool (0) Movement Core (800) Ox15 Location -7/Lower Caves Parts ------- > --- POWER (2) -------- Nuclear Core > --- PROPULSION (4) --- (None) > --- UTILITY (4) ------ Large Storage Unit Large Storage Unit Improved Signal Interpreter Thief Drone Bay (3/3) > --- WEAPON (4) ------- Heavy Flail > --- INVENTORY (16) --- Improved Deuterium Engine Improved Heat Sink Improved Heat Sink Improved Heat Sink Experimental Sensor Array Improved Signal Interpreter Improved Targeting Computer Light Armor Plating Light Armor Plating Improved Light Armor Plating Shield Generator Hacking Suite Dynamic Insulation System Long-range Tractor Beam Flak Gun Remote Datajack Peak State ------------ > --- POWER ------------ Light Nuclear Core Light Nuclear Core > --- PROPULSION ------- Light Treads Light Treads Light Treads > --- UTILITY ---------- Large Storage Unit Large Storage Unit Experimental Sensor Array Improved Signal Interpreter > --- WEAPON ----------- Heavy Assault Rifle Gauss Rifle Remote Datajack Heavy Flail > --- INVENTORY -------- Improved Deuterium Engine Improved Heat Sink Improved Signal Interpreter Improved Targeting Computer Light Armor Plating Light Armor Plating Improved Light Armor Plating Hacking Suite Long-range Tractor Beam Thief Drone Bay Heavy EM Pulse Gun Advanced Assault Cannon Proton Missile Launcher Rocket Launcher [Rating: 36] Favorites ----------- Power Ion Engine Engine Ion Engine Power Core Light Nuclear Core Propulsion Light Treads Treads Light Treads Leg Aluminum Leg Utility Large Storage Unit Device Experimental Sensor Array Storage Large Storage Unit Processor Improved Signal Interpreter Protection Improved Light Armor Plating Weapon Heavy Assault Rifle Energy Gun EM Pulse Gun Ballistic Gun Heavy Assault Rifle Ballistic Cannon Advanced Assault Cannon Launcher Rocket Launcher Special Weapon Remote Datajack Impact Weapon Heavy Flail Build | -11 -10 -10 -9 -9 -8 -7 -7 -7 ------- Run | Scr Mat Min Mat Min Mat Fac Low Low Slots Evolved 6 | . . . 2 . 2 2 . . Power . | . . . . . . . . . Propulsion 2 | . . . . . 1 1 . . Utility 2 | . . . . . 1 1 . . Weapon 2 | . . . 2 . . . . . Parts Attached 75 | 6 3 5 7 1 27 12 12 2 Power 7 | 1 . 1 . 1 1 1 2 . Engine 4 | 1 . 1 . 1 1 . . . Core 3 | . . . . . . 1 2 . Reactor . | . . . . . . . . . Propulsion 19 | 2 . 1 2 . 12 2 . . Treads 17 | 2 . . 2 . 11 2 . . Leg 2 | . . 1 . . 1 . . . Wheel . | . . . . . . . . . Hover . | . . . . . . . . . Flight . | . . . . . . . . . Utility 14 | 1 2 2 . . 1 1 5 2 Device 6 | . . 1 . . 1 . 3 1 Storage 4 | 1 2 1 . . . . . . Processor 1 | . . . . . . 1 . . Hackware . | . . . . . . . . . Protection 3 | . . . . . . . 2 1 Artifact . | . . . . . . . . . Weapon 35 | 2 1 1 5 . 13 8 5 . Energy Gun 8 | 1 1 1 1 . 3 . 1 . Energy Cannon . | . . . . . . . . . Ballistic Gun 18 | 1 . . 4 . 7 6 . . Ballistic Cannon 1 | . . . . . . . 1 . Launcher 5 | . . . . . 3 . 2 . Special Weapon 1 | . . . . . . . 1 . Impact Weapon 2 | . . . . . . 2 . . Slashing Weapon . | . . . . . . . . . Piercing Weapon . | . . . . . . . . . Special Melee Weapon . | . . . . . . . . . Unidentified Prototypes 3 | . . 1 . . 1 . 1 . Parts Lost 28 | . . 2 . 1 6 6 8 5 Power 5 | . . . . 1 1 1 1 1 Propulsion 9 | . . 1 . . 3 1 2 2 Utility . | . . . . . . . . . Weapon 14 | . . 1 . . 2 4 5 2 Highest Loss Streak 6 | . . 2 . 1 3 2 6 5 Average Slot Usage (%) 90 | . 96 99 99 99 96 90 80 43 Engine 7 | . 14 14 11 10 8 4 . . Core 2 | . . . . . . . 11 7 Treads 19 | . 28 19 14 22 21 24 16 . Leg 2 | . . 7 7 . 4 . . . Device 4 | . . . . . 9 7 6 6 Storage 19 | . 24 28 22 22 18 15 14 14 Processor 2 | . . . . . . 7 7 7 Energy Gun 5 | . 14 14 10 11 4 . . . Ballistic Gun 20 | . 14 14 33 33 29 27 5 . Impact Weapon 1 | . . . . . . 2 7 7 Naked Turns . | . . . . . . . . . Heaviest Build 62 | 12 40 40 46 46 50 50 62 59 Greatest Support 80 | 40 40 40 40 40 60 80 60 40 Greatest Overweight (x) 15 | 3 . 1 2 1 2 . 1 15 Average Overweight (x) . | . . . 1 1 . . . 13 Largest Inventory Capacity 16 | 6 16 16 16 16 16 16 16 16 Average Capacity 15 | 5 13 15 16 16 16 16 16 16 Most Carried 16 | 2 4 14 16 16 16 16 16 16 Average Carried 13 | 1 2 9 15 15 15 15 13 15 Final Capacity 16 | 6 16 16 16 16 16 16 16 16 Final Carried 16 | 2 4 14 16 16 16 15 13 16 Class Distribution -------------------- 34% | Scavenger-Skirmisher 27% | Mutant 18% | Scavenger-Mutant 17% | Scavenger-Gunner Dominant Class ---------------- Mutant | -10/Materials Mutant | -10/Mines Scavenger-Gunner | -9/Materials Scavenger-Gunner | -9/Mines Scavenger-Skirmisher | -8/Materials Scavenger-Skirmisher | -7/Factory Scavenger-Mutant | -7/Lower Caves Mutant | -7/Lower Caves Resources | -11 -10 -10 -9 -9 -8 -7 -7 -7 ----------- Run | Scr Mat Min Mat Min Mat Fac Low Low Matter Collected 2096 | 256 43 72 137 109 804 365 274 36 Remotely . | . . . . . . . . . Salvage Created 2816 | . 150 171 239 239 1172 593 252 . Parts 165 | . 6 17 16 21 76 19 10 . Haulers Intercepted 1 | . . . 1 . . . . . Recyclers Shooed 1 | . . . 1 . . . . . Parts Field Recycled . | . . . . . . . . . Retrieved Matter . | . . . . . . . . . Parts Self-Destructed 8 | . . . . . . . 8 . Prevented 2 | . . . . . . . 2 . Kills | -11 -10 -10 -9 -9 -8 -7 -7 -7 ------- Run | Scr Mat Min Mat Min Mat Fac Low Low Combat Hostiles Destroyed 59 | . 3 5 2 10 24 9 6 . Guns 49 | . 3 5 2 10 19 9 1 . AOE 10 | . . . . . 5 . 5 . Classes Destroyed 14 | . 1 1 3 1 5 2 1 . Worker 2 | . . . . . 2 . . . Tunneler 1 | . . . . . . 1 . . Hauler 1 | . . . 1 . . . . . Recycler 4 | . . . 1 . 2 1 . . Operator 2 | . . . . . 2 . . . Watcher 2 | . . . . . 2 . . . Swarmer 15 | . . 2 . 7 6 . . . Grunt 20 | . 3 3 . 2 4 4 4 . Brawler 3 | . . . . 1 2 . . . Duelist 3 | . . . . . 3 . . . Sentry 10 | . . . 2 . 5 3 . . Hunter 5 | . . . . . 4 . 1 . Programmer 2 | . . . . . . 2 . . Behemoth 1 | . . . . . . . 1 . Best Kill Streak 7 | . 2 2 2 7 7 4 3 . Combat Bots Only 7 | . 2 2 1 7 5 4 3 . Max Kills in Single Turn 2 | . 1 1 1 1 2 1 2 . Gunslinging . | . . . . . . . . . Exploded 2 | . . . . . 2 . 2 . Melee . | . . . . . . . . . Uniques/NPCs Destroyed . | . . . . . . . . . Combat | -11 -10 -10 -9 -9 -8 -7 -7 -7 -------- Run | Scr Mat Min Mat Min Mat Fac Low Low Damage Taken 4782 | . 288 255 321 185 1718 579 753 683 Core 650 | . 24 44 61 17 182 71 60 191 Absorbed by Shields . | . . . . . . . . . Core Remaining (%) 79 | 100 . 72 . 80 66 . . . Volleys Fired 154 | . 19 18 10 13 50 22 18 4 Largest 4 | . 2 2 4 4 4 4 3 1 Hottest 132 | . 60 60 106 106 131 101 132 48 Shots Fired 451 | . 38 34 37 52 177 67 42 4 Gun 412 | . 38 34 37 52 169 67 15 . Cannon 17 | . . . . . . . 13 4 Launcher 21 | . . . . . 8 . 13 . Special 1 | . . . . . . . 1 . Kinetic 355 | . 19 17 27 39 155 67 27 4 Thermal . | . . . . . . . . . Explosive 14 | . . . . . 8 . 6 . Electromagnetic 81 | . 19 17 10 13 14 . 8 . Robot Hit Streak 21 | . 9 4 14 8 21 20 12 5 Robot Miss Streak 5 | . 1 4 1 5 3 2 2 1 Penetration Max 1 | . . . . . 1 1 . . Secondary Targets 8 | . . . . 2 4 2 . . Max Gunslinging Chain 1 | . . . . 1 1 1 . . Shots Hit Robots 305 | . 30 18 26 25 109 53 36 8 Core Hits 141 | . 8 10 13 13 54 25 17 1 Critical Hits 2 | . . . . . 2 . . . Critical Kills . | . . . . . . . . . Critical Parts Destroyed 2 | . . . . . 2 . . . Melee Attacks 14 | . . . . . . 3 5 6 Impact 14 | . . . . . . 3 5 6 Slashing . | . . . . . . . . . Piercing . | . . . . . . . . . Sneak Attacks 1 | . . . . . . 1 . . Combat Hostiles . | . . . . . . . . . Follow-up Attacks . | . . . . . . . . . Damage Inflicted 6029 | . 340 187 347 389 2503 1023 1049 191 Guns 4035 | . 340 183 344 313 1785 956 114 . Cannons 342 | . . . . . . . 232 110 Explosions 1172 | . . . . 76 640 . 456 . Melee 391 | . . . . . . 63 247 81 Ramming 89 | . . 4 3 . 78 4 . . Kinetic 3643 | . 102 52 228 201 1657 956 337 110 Thermal 196 | . . . . 76 120 . . . Explosive 858 | . . . . . 520 . 338 . Electromagnetic 852 | . 238 131 116 112 128 . 127 . Impact 391 | . . . . . . 63 247 81 Slashing . | . . . . . . . . . Piercing . | . . . . . . . . . Highest Corruption 4 | . . . . . . 2 4 4 Average Corruption 2 | . . . . . . 1 3 4 Corruption Purged . | . . . . . . . . . Effects 29 | . . . . . . 3 21 5 Message Errors 8 | . . . . . . 1 4 3 Matter Fused 8 | . . . . . . . 7 1 Heat Flow Errors 4 | . . . . . . 1 2 1 Energy Discharges 4 | . . . . . . . 4 . Data Loss (minor) 2 | . . . . . . . 2 . Targeting Errors 3 | . . . . . . 1 2 . Overload Shots . | . . . . . . . . . Overflow Damage 295 | . . . . . 36 23 236 . Projectiles . | . . . . . . . . . Explosions 43 | . . . . . 30 . 13 . Melee 252 | . . . . . 6 23 223 . Knockbacks 3 | . . . . . 1 1 1 . Impact 2 | . . . . . 1 1 . . Kinetic 1 | . . . . . . . 1 . Secondary . | . . . . . . . . . Self-Inflicted Damage 88 | . . . . 25 46 . 17 . Shots 3 | . . . . 1 1 . 1 . Rammed 8 | . . 1 1 . 5 1 . . Targets Rammed 11 | . . 1 1 . 8 1 . . Kicked . | . . . . . . . . . Crushed 3 | . . . . . 3 . . . Highest Temperature 285 | . 176 58 126 181 235 224 285 180 Average Temperature 69 | . 72 22 46 69 70 43 146 86 Received Heat Transfer 1269 | . 171 111 114 18 351 192 90 222 Siege Activations . | . . . . . . . . . Robots Corrupted . | . . . . . . . . . Combat Hostiles . | . . . . . . . . . Parts Fried 3 | . . . . . 1 2 . . Impact Corruptions 7 | . . . . . 1 2 4 . Robots Melted . | . . . . . . . . . Combat Hostiles . | . . . . . . . . . Parts Melted . | . . . . . . . . . Heat Transferred 200 | . . . . 100 100 . . . Parts Sabotaged . | . . . . . . . . . Parts Stolen . | . . . . . . . . . Parts Stripped . | . . . . . . . . . Power Chain Reactions 2 | . . . . 1 1 . . . Missiles Intercepted . | . . . . . . . . . Alert | -11 -10 -10 -9 -9 -8 -7 -7 -7 ------- Run | Scr Mat Min Mat Min Mat Fac Low Low Peak Influence 777 | . 85 193 245 274 777 361 . . Initial 341 | . . 33 . 39 106 341 . . Average 209 | . 39 73 108 142 427 257 . . Maximum Alert Level 3 | . . . 1 1 3 1 . . Low Security (%) 56 | 100 100 100 76 65 15 31 . . Level 1 32 | . . . 23 35 39 68 . . Level 2 7 | . . . . . 34 . . . Level 3 2 | . . . . . 11 . . . Level 4 . | . . . . . . . . . Level 5 . | . . . . . . . . . High Security . | . . . . . . . . . Max Security . | . . . . . . . . . Squads Dispatched 9 | . . . 2 . 5 2 . . Investigation 3 | . . . 1 . 1 1 . . Extermination 1 | . . . . . . 1 . . Reinforcement 2 | . . . 1 . 1 . . . Assault 1 | . . . . . 1 . . . Garrison 2 | . . . . . 2 . . . Intercept . | . . . . . . . . . Construction Impeded 1 | . . . 1 . . . . . Haulers Reinforced . | . . . . . . . . . Stealth | -11 -10 -10 -9 -9 -8 -7 -7 -7 --------- Run | Scr Mat Min Mat Min Mat Fac Low Low Distress Signals 1 | . . . 1 . . . . . Communications Jammed . | . . . . . . . . . Distress Signals . | . . . . . . . . . Times Spotted 94 | . 5 9 11 11 36 14 7 1 Peak Tracking Total 6 | . 4 4 5 4 6 5 3 1 Tactical Retreats 3 | . 1 1 . 1 . . . . Traps | -11 -10 -10 -9 -9 -8 -7 -7 -7 ------- Run | Scr Mat Min Mat Min Mat Fac Low Low Traps Triggered . | . . . . . . . . . Indirectly . | . . . . . . . . . Trap Hack Attempts . | . . . . . . . . . Triggered . | . . . . . . . . . Disarmed . | . . . . . . . . . Reprogrammed . | . . . . . . . . . Reused 1 | . . . 1 . . . . . Traps Extracted . | . . . . . . . . . Installed 3 | . . . 2 . 1 . . . Triggered 3 | . . . 1 . . . 2 . Machines | -11 -10 -10 -9 -9 -8 -7 -7 -7 ---------- Run | Scr Mat Min Mat Min Mat Fac Low Low Machines Disabled 11 | . . 1 1 . 9 . . . Max in Single Turn 2 | . . 1 . . 2 . . . Garrison Access 1 | . . . . . 1 . . . Machines Sabotaged . | . . . . . . . . . Garrisons Compromised . | . . . . . . . . . Overloaded Fab Kills . | . . . . . . . . . Fab Network Shutdowns . | . . . . . . . . . Hacking | -11 -10 -10 -9 -9 -8 -7 -7 -7 --------- Run | Scr Mat Min Mat Min Mat Fac Low Low Machines Accessed 20 | . 2 2 4 . 8 4 . . Terminals 13 | . 2 1 3 . 4 3 . . Fabricators . | . . . . . . . . . Repair Stations 3 | . . . 1 . 2 . . . Recycling Units 1 | . . . . . 1 . . . Scanalyzers . | . . . . . . . . . Garrison Access 2 | . . . . . 1 1 . . Total Hacks 40 | . 3 3 11 . 17 6 . . Successful 17 | . 1 2 4 . 9 1 . . Failed 23 | . 2 1 7 . 8 5 . . Catastrophic 7 | . . . 2 . 2 3 . . Database Lockouts . | . . . . . . . . . Manual 5 | . . . . . 3 2 . . Terminals 28 | . 3 2 9 . 9 5 . . Fabricators . | . . . . . . . . . Repair Stations 8 | . . . 2 . 6 . . . Recycling Units 1 | . . . . . 1 . . . Scanalyzers . | . . . . . . . . . Garrison Access 2 | . . . . . 1 1 . . Terminal Hacks 9 | . 1 2 2 . 3 1 . . Record 1 | . . . . . . 1 . . Prototype ID Bank 2 | . 1 . . . 1 . . . Open Door 1 | . . 1 . . . . . . Alert Level 1 | . . . . . 1 . . . Locate Traps 1 | . . . 1 . . . . . Hauler Manifests 1 | . . . 1 . . . . . Zone Layout 2 | . . 1 . . 1 . . . Fabricator Hacks . | . . . . . . . . . Repair Station Hacks 6 | . . . 2 . 4 . . . Scan Component 3 | . . . 1 . 2 . . . Repair 3 | . . . 1 . 2 . . . Recycling Unit Hacks . | . . . . . . . . . Scanalyzer . | . . . . . . . . . Garrison Access Hacks 1 | . . . . . 1 . . . Seal Access 1 | . . . . . 1 . . . Unauthorized Hacks 1 | . . . . . 1 . . . Terminals . | . . . . . . . . . Fabricators . | . . . . . . . . . Repair Stations . | . . . . . . . . . Recycling Units 1 | . . . . . 1 . . . Tunnel 1 | . . . . . 1 . . . Scanalyzers . | . . . . . . . . . Garrison Access . | . . . . . . . . . Data Cores Recovered 1 | . . . . . 1 . . . Used 1 | . . . . . 1 . . . Hacking Detections 13 | . 1 1 2 . 5 4 . . Full Trace Events 2 | . . . 1 . . 1 . . Feedback Events . | . . . . . . . . . Feedback Blocked . | . . . . . . . . . Robot Schematics Acquired . | . . . . . . . . . Robots Built . | . . . . . . . . . Matter . | . . . . . . . . . Time . | . . . . . . . . . Total Robot Build Rating . | . . . . . . . . . Part Schematics Acquired . | . . . . . . . . . Parts Built . | . . . . . . . . . Matter . | . . . . . . . . . Time . | . . . . . . . . . Total Part Build Rating . | . . . . . . . . . Parts Repaired 3 | . . . 1 . 2 . . . Time 78 | . . . 26 . 52 . . . Parts Recycled . | . . . . . . . . . Recycled Matter . | . . . . . . . . . Retrieved Matter . | . . . . . . . . . Retrieved Components . | . . . . . . . . . Parts Scanalyzed . | . . . . . . . . . Part Schematics Acquired . | . . . . . . . . . Parts Damaged . | . . . . . . . . . Bothacking | -11 -10 -10 -9 -9 -8 -7 -7 -7 ------------ Run | Scr Mat Min Mat Min Mat Fac Low Low Used RIF Installer . | . . . . . . . . . Robots Hacked 1 | . . . . . . . 1 . Non-combat 1 | . . . . . . . 1 . Combat . | . . . . . . . . . Robot Hacks Applied 1 | . . . . . . . 1 . parse_system 1 | . . . . . . . 1 . Relay Couplers Released . | . . . . . . . . . Robots Rewired 1 | . . 1 . . . . . . Allies Hacked . | . . . . . . . . . Hacks Repelled . | . . . . . . . . . Allies | -11 -10 -10 -9 -9 -8 -7 -7 -7 -------- Run | Scr Mat Min Mat Min Mat Fac Low Low Total Allies 5 | . . 5 . . . . . . Largest Group 4 | . . 4 4 . . . . . Highest-Rated Group 71 | . . 71 71 . . . . . Highest-Rated Ally 31 | . . 31 31 . . . . . Total Orders . | . . . . . . . . . Ally Attacks 57 | . . . 49 . . . . 8 Total Damage 623 | . . . 558 . . . . 65 Kills 7 | . . . 7 . . . . . Allies Corrupted . | . . . . . . . . . Allies Melted . | . . . . . . . . . Intel | -11 -10 -10 -9 -9 -8 -7 -7 -7 ------- Run | Scr Mat Min Mat Min Mat Fac Low Low Robot Analysis Total . | . . . . . . . . . Derelict Logs Recovered 1 | . . 1 . . . . . . Drone Launches 3 | . . . . . . . . 3 Drone Recoveries 3 | . . . . . . . . 3 Exploration | -11 -10 -10 -9 -9 -8 -7 -7 -7 ------------- Run | Scr Mat Min Mat Min Mat Fac Low Low Turns Passed 4971 | 54 240 791 586 380 902 969 770 279 Spaces Moved 2203 | 31 105 415 268 185 380 393 392 34 Core 41 | 12 . . . . . . . 29 Treads 2162 | 19 105 415 268 185 380 393 392 5 Legs . | . . . . . . . . . Wheels . | . . . . . . . . . Hover . | . . . . . . . . . Flight . | . . . . . . . . . Fastest Speed 50 | 50 160 160 180 180 160 160 160 180 Average Speed 180 | 143 160 171 193 180 172 160 172 710 Slowest Speed 800 | 200 160 180 200 180 200 160 180 800 Overloaded Moves . | . . . . . . . . . Propulsion Burnouts . | . . . . . . . . . Robots Hopped . | . . . . . . . . . Cave-ins Triggered . | . . . . . . . . . Exploration Rate (%) 34 | 3 23 83 29 46 42 13 58 12 Regions Visited 8 Branch Regions 4 Pre-discovered Areas 1 | . . . . . 1 . . . Known Exits Taken 3 | . . . 1 . . 1 1 . Unknown Exits Taken 5 | 1 1 1 . 1 1 . . . Scrap Searched 2 | . . 1 . . . . 1 . Spaces Dug 3 | . . . . . . 1 2 . Terrain Destroyed 121 | . . . . 4 75 3 39 . Melee 3 | . . . . . . 1 2 . Projectile 3 | . . . . . 1 2 . . AOE 115 | . . . . 4 74 . 37 . Terrain Rammed . | . . . . . . . . . Walls Destroyed . | . . . . . . . . . Machines Disabled . | . . . . . . . . . Actions | -11 -10 -10 -9 -9 -8 -7 -7 -7 --------- Run | Scr Mat Min Mat Min Mat Fac Low Low Total 2850 | 38 142 461 318 207 516 680 434 54 Wait 323 | . 14 11 15 4 31 240 . 8 Move 2195 | 30 104 414 267 184 379 392 391 34 Hop . | . . . . . . . . . Pick Up 42 | 2 1 9 8 3 9 7 3 . Fast Attach 22 | 6 1 2 2 . 5 4 2 . Attach 21 | . . 1 2 1 6 5 6 . Detach 2 | . . 1 . . . . 1 . Swap 33 | . 2 2 3 . 16 3 5 2 Drop 25 | . 1 . 8 2 11 3 . . Fire 154 | . 19 18 10 13 50 22 18 4 Melee 14 | . . . . . . 3 5 6 Ram . | . . . . . . . . . Kick . | . . . . . . . . . Crush 11 | . . 1 1 . 8 1 . . Escape Stasis . | . . . . . . . . . Rewire 5 | . . 2 . . . . 3 . Trap 3 | . . . 2 . 1 . . . Miscellaneous . | . . . . . . . . . Route ------- -11/Scrapyard -10/Materials -10/Mines (discovered 3 exits: *Mat x2 / [*Exi]) -9/Materials (discovered 3 exits: *Min / *Sto x2) -9/Mines -8/Materials -7/Factory -7/Lower Caves -7/Lower Caves History --------- Turn | Location | Event 19 | -11/Scrapyard | Discovered new exit (range 16) 55 | -11/Scrapyard | Entered Materials 273 | -10/Materials | Discovered new exit (range 9) 295 | -10/Materials | Entered Mines 309 | -10/Mines | Build established: Mutant 505 | -10/Mines | Found the Drone Emporium 511 | -10/Mines | Found Prototype Device 511 | -10/Mines | Identified Thief Drone Bay 605 | -10/Mines | Discovered new exit (range 5) 625 | -10/Mines | Learned 4 Materials zone layouts 708 | -10/Mines | Found a hidden stash of uninstalled traps 820 | -10/Mines | Deemed a non-threat by the Exiles lab entrance 820 | -10/Mines | Discovered new exit (range 5) 874 | -10/Mines | Received a Rocket Launcher from a helpful Derelict 932 | -10/Mines | Received a Mining Laser from a helpful Derelict 1018 | -10/Mines | Discovered new exit (range 14) 1073 | -10/Mines | Assisted by bots powering up and referring to "LRC-V3" 1086 | -10/Mines | Entered Materials 1086 | -9/Materials | Accompanied by 4 allies 1086 | -9/Materials | Evolved 2 slots: Weapon x2 1087 | -9/Materials | Identified exit to Mines 1087 | -9/Materials | Identified exit to Storage 1137 | -9/Materials | Discovered exit to Storage (range 16) 1242 | -9/Materials | Repaired EM Pulse Gun 1468 | -9/Materials | Build established: Scavenger-Gunner 1672 | -9/Materials | Entered Mines 1690 | -9/Mines | Met a Derelict bent on vengeance 1730 | -9/Mines | Found a damaged Exp. Sensor Array with a note attached 1734 | -9/Mines | Found Prototype Device 1784 | -9/Mines | Discovered new exit (range 11) 1964 | -9/Mines | Destroyed 7 combat bots 2052 | -9/Mines | Entered Materials 2052 | -8/Materials | Evolved 2 slots: Propulsion x1, Utility x1 2053 | -8/Materials | Identified Exp. Sensor Array 2099 | -8/Materials | Repaired EM Pulse Gun 2378 | -8/Materials | Repaired Lgt. Treads 2628 | -8/Materials | Build established: Scavenger-Skirmisher 2651 | -8/Materials | Garrison activated, responded to threat 2830 | -8/Materials | Discovered new exit (range 14) 2852 | -8/Materials | First assault squad dispatched 2927 | -8/Materials | Lost 3 parts (2n1w) 2954 | -8/Materials | Entered Factory 2954 | -7/Factory | Evolved 2 slots: Propulsion x1, Utility x1 3880 | -7/Factory | Discovered new exit (range 12) 3922 | -7/Factory | Identified exit to Lower Caves 3923 | -7/Factory | Entered Lower Caves 3974 | -7/Lower Caves | Lost 3 parts (2n1w) 4090 | -7/Lower Caves | Found Alien Artifact 4090 | -7/Lower Caves | Identified Core Expander 4090 | -7/Lower Caves | Installed Core Expander, added new Power slot 4172 | -7/Lower Caves | Spotted B-75 Beast 4209 | -7/Lower Caves | Destroyed B-75 Beast 4226 | -7/Lower Caves | Build established: Scavenger-Mutant 4235 | -7/Lower Caves | Lost 6 parts (1p1n4w) 4466 | -7/Lower Caves | Encountered a Warlord checkpoint 4494 | -7/Lower Caves | Discovered new exit (range 10) 4539 | -7/Lower Caves | Identified exit to Lower Caves 4693 | -7/Lower Caves | Entered another Lower Caves area 4695 | -7/Lower Caves | Attracted the attention of an 0b10 checkpoint 4760 | -7/Lower Caves | Lost 5 parts (1p2n2w) 4972 | -7/Lower Caves | Self-destructed Last Messages --------------- 04735_ Y-54 Guardian Flak Gun ripped off. 04736_ Y-54 Guardian Imp. Heat Sink ripped off. 04738_ Thief Drone delivers Imp. Heat Sink. 04738_ Thief Drone retrieved by Thief Drone Bay. 04739_ Thief Drone delivers Flak Gun. 04739_ Thief Drone retrieved by Thief Drone Bay. 04740_ Y-54 Guardian Imp. Heat Sink ripped off. 04742_ Thief Drone delivers Imp. Heat Sink. 04742_ Thief Drone retrieved by Thief Drone Bay. 04744_ Y-54 Guardian heat spikes uncontrollably. 04747_ Y-54 Guardian heat short circuits Gatling Laser. 04750_ Y-54 Guardian heat spikes uncontrollably. 04752_ Y-54 Guardian heat damages Lgt. Treads. 04753_ Y-54 Guardian heat damages core (-11). 04772_ Acquired 36 matter. 04813_ System corrupted: Matter fused (-9). 04857_ DNR/W:WAS BS>W% WT6AVBZ9A /HRIVHKO2LE 04887_ 5